Cogmind - Beta 10.2 @@@ ROGUE MODE // 2021.05.11 @ 11:40:49 Player: sentrybuster Result: Destroyed by G-34 Mercenary with Small Laser Performance ------------- Evolutions (0) 0 Regions Visited (1) 200 Robots Destroyed (4) 20 Value Destroyed (104) 104 Prototype IDs (0) 0 Alien Tech Used (0) 0 Bonus (0) 0 TOTAL SCORE: 324 Bonus ------- None Cogmind --------- Core Integrity 0/250 Matter 300/300 Energy 100/100 System Corruption 1% Temperature Cool (6) Movement Core (50) Location -10/Materials Parts ------- > --- POWER (1) -------- (None) > --- PROPULSION (2) --- (None) > --- UTILITY (2) ------ Seismic Analyzer > --- WEAPON (2) ------- Mining Claw > --- INVENTORY (4) ---- Light Ion Engine Aluminum Leg Aluminum Leg Small Laser Peak State ------------ > --- POWER ------------ Light Ion Engine > --- PROPULSION ------- Wheel Wheel > --- UTILITY ---------- Improved Terrain Scanner Seismic Analyzer > --- WEAPON ----------- Medium Laser Small Laser > --- INVENTORY -------- Light Ion Engine Aluminum Leg Small Storage Unit [Rating: 8] Favorites ----------- Power Light Ion Engine Engine Light Ion Engine Propulsion Wheel Wheel Wheel Utility Seismic Analyzer Device Improved Terrain Scanner Storage Small Storage Unit Processor Seismic Analyzer Weapon Medium Laser Energy Gun Medium Laser Slashing Weapon Mining Claw Build | -11 -10 ------- Run | Scr Mat Slots Evolved . | . . Power . | . . Propulsion . | . . Utility . | . . Weapon . | . . Parts Attached 9 | 8 1 Power 1 | 1 . Engine 1 | 1 . Core . | . . Reactor . | . . Propulsion 2 | 2 . Treads . | . . Leg . | . . Wheel 2 | 2 . Hover . | . . Flight . | . . Utility 3 | 3 . Device 1 | 1 . Storage 1 | 1 . Processor 1 | 1 . Hackware . | . . Protection . | . . Artifact . | . . Weapon 3 | 2 1 Energy Gun 2 | 2 . Energy Cannon . | . . Ballistic Gun . | . . Ballistic Cannon . | . . Launcher . | . . Special Weapon . | . . Impact Weapon . | . . Slashing Weapon 1 | . 1 Piercing Weapon . | . . Special Melee Weapon . | . . Unidentified Prototypes . | . . Parts Lost 5 | . 5 Power 1 | . 1 Propulsion 2 | . 2 Utility 1 | . 1 Weapon 1 | . 1 Highest Loss Streak 5 | . 5 Average Slot Usage (%) 88 | . 88 Engine 13 | . 13 Wheel 22 | . 22 Device 14 | . 14 Processor 14 | . 14 Energy Gun 17 | . 17 Slashing Weapon 6 | . 6 Naked Turns . | . . Heaviest Build 10 | 10 8 Greatest Support 20 | 20 20 Greatest Overweight (x) . | . . Average Overweight (x) . | . . Largest Inventory Capacity 6 | 6 4 Average Capacity 4 | 4 4 Most Carried 4 | 4 4 Average Carried 3 | 1 4 Final Capacity 4 | 4 4 Final Carried 4 | 4 4 Class Distribution -------------------- 100% | Mutant Dominant Class ---------------- Mutant | -10/Materials Resources | -11 -10 ----------- Run | Scr Mat Matter Collected 280 | 280 . Remotely . | . . Salvage Created 134 | 22 112 Parts 8 | 4 4 Haulers Intercepted . | . . Recyclers Shooed 1 | . 1 Parts Field Recycled . | . . Retrieved Matter . | . . Parts Self-Destructed . | . . Prevented . | . . Kills | -11 -10 ------- Run | Scr Mat Combat Hostiles Destroyed 2 | . 2 Melee 2 | . 2 Classes Destroyed 3 | 1 2 Tunneler 1 | 1 . Operator 1 | . 1 Grunt 2 | . 2 Best Kill Streak 2 | 1 2 Combat Bots Only 2 | . 2 Max Kills in Single Turn 1 | 1 1 Gunslinging . | . . Exploded . | . . Melee 1 | . 1 Uniques/NPCs Destroyed . | . . Combat | -11 -10 -------- Run | Scr Mat Damage Taken 505 | . 505 Core 257 | . 257 Absorbed by Shields . | . . Core Remaining (%) 100 | 100 . Volleys Fired 10 | 7 3 Largest 2 | 2 2 Hottest 90 | 90 90 Shots Fired 20 | 14 6 Gun 20 | 14 6 Cannon . | . . Launcher . | . . Special . | . . Kinetic . | . . Thermal 20 | 14 6 Explosive . | . . Electromagnetic . | . . Robot Hit Streak 8 | 8 1 Robot Miss Streak 2 | 1 2 Penetration Max . | . . Secondary Targets . | . . Shots Hit Robots 31 | 11 20 Core Hits 8 | 2 6 Critical Hits . | . . Critical Kills . | . . Critical Parts Destroyed . | . . Melee Attacks 24 | . 24 Impact . | . . Slashing 24 | . 24 Piercing . | . . Sneak Attacks . | . . Combat Hostiles . | . . Follow-up Attacks . | . . Damage Inflicted 559 | 129 430 Guns 150 | 129 21 Cannons . | . . Explosions . | . . Melee 400 | . 400 Ramming 9 | . 9 Kinetic . | . . Thermal 150 | 129 21 Explosive . | . . Electromagnetic . | . . Impact . | . . Slashing 400 | . 400 Piercing . | . . Highest Corruption 1 | . 1 Average Corruption 1 | . 1 Corruption Purged . | . . Effects 1 | . 1 Data Loss (minor) 1 | . 1 Overload Shots . | . . Overflow Damage 30 | . 30 Projectiles . | . . Explosions . | . . Melee 30 | . 30 Knockbacks . | . . Impact . | . . Kinetic . | . . Secondary . | . . Self-Inflicted Damage 4 | . 4 Shots . | . . Rammed 1 | . 1 Targets Rammed 1 | . 1 Kicked . | . . Crushed . | . . Highest Temperature 210 | 210 80 Average Temperature 86 | 106 35 Received Heat Transfer 282 | . 282 Siege Activations . | . . Robots Corrupted . | . . Combat Hostiles . | . . Parts Fried . | . . Impact Corruptions . | . . Robots Melted . | . . Combat Hostiles . | . . Parts Melted . | . . Heat Transferred 397 | 347 50 Parts Sabotaged . | . . Parts Stolen . | . . Parts Stripped . | . . Power Chain Reactions . | . . Missiles Intercepted . | . . Alert | -11 -10 ------- Run | Scr Mat Peak Influence 78 | 5 78 Initial 3 | . 3 Average 29 | 2 42 Maximum Alert Level . | . . Low Security (%) 100 | 100 100 Level 1 . | . . Level 2 . | . . Level 3 . | . . Level 4 . | . . Level 5 . | . . High Security . | . . Max Security . | . . Squads Dispatched 2 | . 2 Investigation . | . . Extermination . | . . Reinforcement 2 | . 2 Assault . | . . Garrison . | . . Intercept . | . . Construction Impeded . | . . Haulers Reinforced . | . . Stealth | -11 -10 --------- Run | Scr Mat Distress Signals . | . . Communications Jammed . | . . Distress Signals . | . . Times Spotted 7 | . 7 Peak Tracking Total 4 | . 4 Tactical Retreats . | . . Traps | -11 -10 ------- Run | Scr Mat Traps Triggered . | . . Indirectly . | . . Trap Hack Attempts . | . . Triggered . | . . Disarmed . | . . Reprogrammed . | . . Reused . | . . Traps Extracted . | . . Installed . | . . Triggered . | . . Machines | -11 -10 ---------- Run | Scr Mat Machines Disabled . | . . Max in Single Turn . | . . Machines Sabotaged . | . . Garrisons Compromised . | . . Overloaded Fab Kills . | . . Fab Network Shutdowns . | . . Hacking | -11 -10 --------- Run | Scr Mat Machines Accessed 1 | . 1 Terminals 1 | . 1 Fabricators . | . . Repair Stations . | . . Recycling Units . | . . Scanalyzers . | . . Garrison Access . | . . Total Hacks 5 | . 5 Successful 2 | . 2 Failed 3 | . 3 Catastrophic . | . . Database Lockouts . | . . Manual 5 | . 5 Terminals 5 | . 5 Fabricators . | . . Repair Stations . | . . Recycling Units . | . . Scanalyzers . | . . Garrison Access . | . . Terminal Hacks . | . . Fabricator Hacks . | . . Repair Station Hacks . | . . Recycling Unit Hacks . | . . Scanalyzer . | . . Garrison Access Hacks . | . . Unauthorized Hacks 2 | . 2 Terminals 2 | . 2 Track 1 | . 1 Operators 1 | . 1 Fabricators . | . . Repair Stations . | . . Recycling Units . | . . Scanalyzers . | . . Garrison Access . | . . Data Cores Recovered . | . . Used . | . . Hacking Detections 1 | . 1 Full Trace Events . | . . Feedback Events . | . . Feedback Blocked . | . . Robot Schematics Acquired . | . . Robots Built . | . . Matter . | . . Time . | . . Total Robot Build Rating . | . . Part Schematics Acquired . | . . Parts Built . | . . Matter . | . . Time . | . . Total Part Build Rating . | . . Parts Repaired . | . . Time . | . . Parts Recycled . | . . Recycled Matter . | . . Retrieved Matter . | . . Retrieved Components . | . . Parts Scanalyzed . | . . Part Schematics Acquired . | . . Parts Damaged . | . . Bothacking | -11 -10 ------------ Run | Scr Mat Used RIF Installer . | . . Robots Hacked . | . . Non-combat . | . . Combat . | . . Robot Hacks Applied . | . . Relay Couplers Released . | . . Robots Rewired . | . . Allies Hacked . | . . Hacks Repelled . | . . Allies | -11 -10 -------- Run | Scr Mat Total Allies . | . . Largest Group . | . . Highest-Rated Group . | . . Highest-Rated Ally . | . . Total Orders . | . . Ally Attacks . | . . Total Damage . | . . Kills . | . . Allies Corrupted . | . . Allies Melted . | . . Intel | -11 -10 ------- Run | Scr Mat Robot Analysis Total . | . . Derelict Logs Recovered . | . . Drone Launches . | . . Drone Recoveries . | . . Exploration | -11 -10 ------------- Run | Scr Mat Turns Passed 255 | 83 172 Spaces Moved 149 | 57 92 Core 2 | 2 . Treads . | . . Legs . | . . Wheels 147 | 55 92 Hover . | . . Flight . | . . Fastest Speed 50 | 50 80 Average Speed 79 | 78 80 Slowest Speed 80 | 80 80 Overloaded Moves . | . . Propulsion Burnouts . | . . Robots Hopped . | . . Cave-ins Triggered . | . . Exploration Rate (%) 16 | 3 29 Regions Visited 1 Branch Regions . Pre-discovered Areas . | . . Known Exits Taken . | . . Unknown Exits Taken 1 | 1 . Scrap Searched . | . . Spaces Dug . | . . Terrain Destroyed . | . . Melee . | . . Projectile . | . . AOE . | . . Terrain Rammed . | . . Walls Destroyed . | . . Machines Disabled . | . . Actions | -11 -10 --------- Run | Scr Mat Total 213 | 77 136 Wait 14 | . 14 Move 148 | 56 92 Hop . | . . Pick Up 4 | 4 . Fast Attach 9 | 8 1 Attach . | . . Detach 1 | 1 . Swap . | . . Drop 2 | 1 1 Fire 10 | 7 3 Melee 24 | . 24 Ram 1 | . 1 Kick . | . . Crush . | . . Escape Stasis . | . . Rewire . | . . Trap . | . . Miscellaneous . | . . Route ------- -11/Scrapyard -10/Materials (discovered 1 exit: [*Min]) History --------- Turn | Location | Event 23 | -11/Scrapyard | Discovered new exit (range 15) 84 | -11/Scrapyard | Entered Materials 157 | -10/Materials | Discovered new exit (range 16) 234 | -10/Materials | Core integrity fell below 50% 248 | -10/Materials | Core integrity fell below 20% 256 | -10/Materials | Destroyed by G-34 Mercenary with Small Laser Last Messages --------------- 00207_ K-01 Serf collects debris. 00214_ Wheel destroyed. 00217_ R-06 Scavenger collects Aluminum Leg. 00218_ R-06 Scavenger collects Imp. Heat Sink. 00219_ K-01 Serf collects debris. 00220_ Destroyed Sml. Laser. 00222_ K-01 Serf collects debris. 00223_ R-06 Scavenger collects Sml. Laser. 00225_ Wheel destroyed. 00226_ K-01 Serf collects debris. 00227_ System corrupted: Component data lost. 00232_ Destroyed Lgt. Nuclear Core. 00236_ K-01 Serf collects debris. 00242_ K-01 Serf cleans the Nuclear Reactor. 00244_ Lgt. Ion Engine destroyed. 00244_ G-47 Trooper Aluminum Leg ripped off. 00246_ R-06 Scavenger collects Aluminum Leg. 00246_ K-01 Serf collects debris. 00251_ Imp. Terrain Scanner destroyed. 00253_ Destroyed Particle Gun. Map ----- +----------------------------------------------------+ | ???????????????????????????????????????????? | | ???????????????????????????????????????????? | | ???????????????????????????????????????????? | | ??????#"""?????????????????????????????????? | | ?????#"!!!"????????????????????????????????? | | ????#"" "??????????#?????????????????????? | | ????? ????????????????????????????????? | | ????? < ?????????????#? ????????????????? | | ??#?? o ????????????????? ??????????????? | | ?????? ??????????##??????? ????????????? | | ?????? ?#????###??##???????????????????? | | ???#??# #????#??????#??????????#?????????? | | ??????# #?????#???####???? ??????????????? | | # ""? # ##?#???????#?#???#?#???"?????????? | | ? "T"?# ############?#??#??? ????????????? | | ? #k # #?????#??#?????????????? | | # """ # # #?????##?# ? ??????????? | | # """ # # ###????#??? ???? ? ????? | | # """ / / #?#?##?#?#??#??????????? | | # # # ########### ? ?????????? | | # ""??# # ! # [ # ??? ??????? | | # ??" # # # # ? ????????? | | ????"?# ###+#####+# #?? ????????? | | ? ??? # #%""" """ # ???????????? | | ####### kg +%""" """ # "?? ???????? | | # T # gg@# """ """ #???" ???????? | | # # ##r######## #? ?????????? | | # # # r #?## #???#????????? | | # + u#k ##?##+########## ##???????? | | # """ # r+ ########????#?## ?????????? | | # """ # # #?#?#???#???#?#??#????????? | | # """ ###u# ####?????####??? ?????????? | | # ###%#? ##????????#???? ??????????? | | # """ ### ######### #?#?##??#??????????????? | | # """ #?# #?#??#?#? ### #? ?#???#??????????? | | # """ ### ###?#?## ? ??##?????????????? | | # ? #?# ########? ? ?# ?##?????????????? | | ##??##### # ####### #?##?#?????????????? | | ??#??#??# # ! ???????????????????? | | #??????## # ?? ? ???????????????? | | ?#?##???# # """ ? ???????????????????? | | ?#??????# # """ #??????????????????????? | | ?########+## """ #?#?#??????????????????? | | # # #??????????????????????? | | # + #??????????????????????? | | # # %""" #??????????????????????? | | # # *""" #?" ???????????????????? | | # # """ # ?????#???????????????? | | ############ #?"????????????????????? | | ??########## | +??????????????????????? | +----------------------------------------------------+ Best States ------------- Heat Dissipation 25 Energy Generation 10 Energy Capacity 125 Matter Stores 300 Matter Capacity 300 Sight Range 16 Terrain Scan Range 16 Terrain Scan Density 60 Evasion (%) 44 Item Schematics ----------------- None Robot Schematics ------------------ None Fabricated ------------ Nothing Alien Tech Used ----------------- None Achievements -------------- None Challenges ------------ None Game ------ Seed HugeGammaSlayer Manual? 0 Play Time 00:03:27 Cumulative 209.0 hours Start 2021.05.11 @ 11:38:47 End 2021.05.11 @ 11:40:49 Sessions 1 Manual Loads 0 Difficulty Rogue Special Mode None Game No. 314 Rogue 310 Adventurer 0 Explorer 4 Win Type - Total 3 Types 3/0/0/0/0/0/0/0/0 Lore% 71 Gallery% 82 Achievement% 54 Wizard Run 0 Options --------- ASCII 1 Keyboard 1 Movement Numpad Keybinds 0 Fullscreen 2 Font 18/X11 Map View 76x50 Tactical HUD 1 Map Filters NONE Filters NONE Steam 1 RUN: 13a12fa8-1adc-463c-b879-dc088bb9f19e